fUST/lending_fUST_20250909
["ID","MTS","AMOUNT","RATE_DAILY","PERIOD"]
[384372447,1757353844390,-480.0,0.00013972,2]
[384372448,1757353844399,-480.0,0.00013972,2]
[384372449,1757353844408,-480.0,0.00013972,2]
[384372450,1757353844417,-480.0,0.00013972,2]
[384372451,1757353844427,-480.0,0.00013972,2]
[384372452,1757353844436,-480.0,0.00013972,2]
[384372453,1757353844445,-480.0,0.00013972,2]
[384372454,1757353844455,-480.0,0.00013972,2]
[384372455,1757353844465,-480.0,0.00013972,2]
[384372456,1757353844475,-483.82165332,0.00013972,2]
[384372457,1757353844484,-480.0,0.00013972,2]
[384372458,1757353844495,-480.0,0.00013972,2]
[384372459,1757353844505,-480.0,0.00013972,2]
[384372460,1757353844515,-480.0,0.00013972,2]
[384372461,1757353844525,-480.0,0.00013972,2]
[384372462,1757353844535,-480.0,0.00013972,2]
[384372463,1757353844544,-480.0,0.00013972,2]
[384372464,1757353844555,-480.0,0.00013972,2]
[384372465,1757353844565,-502.37219136,0.00013972,2]
[384372466,1757353844575,-480.0,0.00013972,2]
[384372467,1757353844586,-480.0,0.00013972,2]
[384372468,1757353844596,-480.0,0.00013972,2]
[384372469,1757353844606,-480.0,0.00013972,2]
[384372470,1757353844616,-608.28226064,0.00013972,2]
[384372471,1757353844626,-480.0,0.00013972,2]
[384372472,1757353844636,-480.0,0.00013972,2]
[384372473,1757353844647,-480.0,0.00013972,2]
[384372474,1757353844660,-494.4495328,0.00013972,2]
[384372475,1757353844671,-448.38481023,0.00013972,2]
[384372476,1757353844681,-480.0,0.00013972,2]
[384372477,1757353844692,-480.0,0.00013972,2]
[384372478,1757353844703,-480.0,0.00013972,2]
[384372479,1757353844713,-480.0,0.00013972,2]
[384372480,1757353844725,-480.0,0.00013972,2]
[384372481,1757353844736,-477.94168063,0.00013972,2]
[384372482,1757353844747,-480.0,0.00013972,2]
[384372483,1757353844757,-480.0,0.00013972,2]
[384372484,1757353844767,-480.0,0.00013972,2]
[384372485,1757353844778,-480.0,0.00013972,2]
[384372486,1757353844790,-480.0,0.00013972,2]
[384372487,1757353844800,-480.0,0.00013972,2]
[384372488,1757353844810,-480.0,0.00013972,2]
[384372489,1757353844821,-480.0,0.00013972,2]
[384372490,1757353844831,-480.0,0.00013972,2]
[384372491,1757353844842,-480.0,0.00013972,2]
[384372492,1757353844852,-480.0,0.00013972,2]
[384372493,1757353844862,-480.0,0.00013972,2]
[384372494,1757353844874,-480.0,0.00013972,2]
[384372495,1757353844884,-480.0,0.00013972,2]
[384372496,1757353844894,-480.0,0.00013972,2]
[384372497,1757353844905,-480.0,0.00013972,2]
[384372498,1757353844915,-480.0,0.00013972,2]
[384372499,1757353844925,-480.0,0.00013972,2]
[384372500,1757353844936,-480.0,0.00013972,2]
[384372501,1757353844947,-480.0,0.00013972,2]
[384372502,1757353844958,-480.0,0.00013972,2]
[384372503,1757353844968,-480.0,0.00013972,2]
[384372504,1757353844979,-480.0,0.00013972,2]
[384372505,1757353844990,-538.3,0.00013972,2]
[384372506,1757353845000,-480.0,0.00013972,2]
[384372507,1757353845010,-480.0,0.00013972,2]
[384372508,1757353845022,-480.0,0.00013972,2]
[384372509,1757353845032,-480.0,0.00013972,2]
[384372510,1757353845043,-490.06861875,0.00013972,2]
[384372511,1757353845054,-291.24236309,0.00013972,2]
[384372512,1757353845065,-480.0,0.00013972,2]
[384372513,1757353845075,-480.0,0.00013972,2]
[384372514,1757353845086,-480.0,0.00013972,2]
[384372515,1757353845098,-480.0,0.00013972,2]
[384372516,1757353845109,-480.0,0.00013972,2]
[384372517,1757353845121,-341.88999264,0.00013972,2]
[384372518,1757353845131,-370.53742786,0.00013972,2]
[384372519,1757353845142,-480.0,0.00013972,2]
[384372520,1757353845153,-480.0,0.00013972,2]
[384372521,1757353845168,-480.0,0.00013972,2]
[384372522,1757353845178,-480.0,0.00013972,2]
[384372523,1757353845189,-480.0,0.00013972,2]
[384372524,1757353845200,-480.0,0.00013972,2]
[384372525,1757353845214,-480.0,0.00013972,2]
[384372526,1757353845225,-480.0,0.00013972,2]
[384372527,1757353845238,-480.0,0.00013972,2]
[384372528,1757353845248,-480.0,0.00013972,2]
[384372529,1757353845259,-480.0,0.00013972,2]
[384372530,1757353845270,-480.0,0.00013972,2]
[384372531,1757353845280,-480.0,0.00013972,2]
[384372532,1757353845291,-480.0,0.00013972,2]
[384372533,1757353845302,-480.0,0.00013972,2]
[384372534,1757353845314,-480.0,0.00013972,2]
[384372535,1757353845325,-480.0,0.00013972,2]
[384372536,1757353845336,-480.0,0.00013972,2]
[384372537,1757353845346,-480.0,0.00013972,2]
[384372538,1757353845357,-480.0,0.00013972,2]
[384372539,1757353845367,-480.0,0.00013972,2]
[384372540,1757353845378,-480.0,0.00013972,2]
[384372541,1757353845388,-255.54400196,0.00013972,2]
[384372542,1757353845398,-480.0,0.00013972,2]
[384372543,1757353845410,-480.0,0.00013972,2]
[384372544,1757353845420,-480.0,0.00013972,2]
[384372545,1757353845430,-480.0,0.00013972,2]
[384372546,1757353845441,-480.0,0.00013972,2]
[384372547,1757353845451,-480.0,0.00013972,2]
[384372548,1757353845462,-480.0,0.00013972,2]
[384372549,1757353845473,-480.0,0.00013972,2]
[384372550,1757353845483,-480.0,0.00013972,2]
[384372551,1757353845493,-480.0,0.00013972,2]
[384372552,1757353845503,-480.0,0.00013972,2]
[384372553,1757353845514,-480.0,0.00013972,2]
[384372554,1757353845525,-480.0,0.00013972,2]
[384372555,1757353845535,-480.0,0.00013972,2]
[384372556,1757353845546,-480.93392864,0.00013972,2]
[384372557,1757353845557,-480.0,0.00013972,2]
[384372558,1757353845567,-480.0,0.00013972,2]
[384372559,1757353845577,-480.0,0.00013972,2]
[384372560,1757353845587,-520.0,0.00013972,2]
[384372561,1757353845597,-480.0,0.00013972,2]
[384372562,1757353845607,-480.0,0.00013972,2]
[384372563,1757353845617,-480.0,0.00013972,2]
[384372564,1757353845628,-480.0,0.00013972,2]
[384372565,1757353845638,-480.0,0.00013972,2]
[384372566,1757353845648,-335.82196643,0.00013972,2]
[384372568,1757353845658,-480.0,0.00013972,2]
[384372570,1757353845669,-480.0,0.00013972,2]
[384372572,1757353845679,-911.1,0.00013972,2]
[384372573,1757353845689,-480.0,0.00013972,2]
[384372574,1757353845699,-480.0,0.00013972,2]
[384372577,1757353845885,-480.0,0.00013972,2]
[384372579,1757353845896,-480.0,0.00013972,2]
[384372580,1757353845906,-480.0,0.00013972,2]
[384372581,1757353845918,-480.0,0.00013972,2]
[384372583,1757353845929,-480.0,0.00013972,2]
[384372584,1757353845939,-18408.63446995,0.0001399,2]
[384372585,1757353845949,-2990.66517117,0.00014,2]
[384372586,1757353845959,-500.0,0.00014021,2]
[384372587,1757353845970,-500.0,0.00014021,2]
[384372589,1757353845980,-1000.0,0.00014021,2]
[384372590,1757353845990,-500.01494023,0.00014221,2]
[384372591,1757353846000,-500.0,0.00014221,2]
[384372592,1757353846011,-500.0,0.00014221,2]
[384372593,1757353846022,-480.0,0.00014246,2]
[384372594,1757353846033,-480.0,0.00014246,2]
[384372595,1757353846043,-463.24,0.00014246,2]
[384372596,1757353846053,-480.0,0.00014246,2]
[384372597,1757353846063,-480.0,0.00014246,2]
[384372598,1757353846074,-263.16,0.00014246,2]
[384372599,1757353846085,-441.92,0.00014246,2]
[384372600,1757353846095,-455.05,0.00014246,2]
[384372601,1757353846106,-480.0,0.00014246,2]
[384372602,1757353846117,-480.0,0.00014246,2]
[384372603,1757353846128,-480.0,0.00014246,2]
[384372604,1757353846139,-480.0,0.00014246,2]
[384372605,1757353846149,-480.0,0.00014246,2]
[384372606,1757353846161,-611.04,0.00014246,2]
[384372607,1757353846172,-911.1,0.00014246,2]
[384372608,1757353846182,-1000.0,0.00014247,2]
[384372609,1757353846192,-608.71,0.0001452,2]
[384372611,1757353846203,-480.0,0.0001452,2]
[384372612,1757353846214,-480.0,0.0001452,2]
[384372613,1757353846223,-480.0,0.0001452,2]
[384372614,1757353846233,-480.0,0.0001452,2]
[384372615,1757353846245,-480.0,0.0001452,2]
[384372616,1757353846255,-480.0,0.0001452,2]
[384372617,1757353846265,-480.0,0.0001452,2]
[384372618,1757353846275,-480.0,0.0001452,2]
[384372619,1757353846284,-911.1,0.0001452,2]
[384372620,1757353846294,-1500.0,0.00014568,2]
[384372621,1757353846304,-380.0,0.00014763,2]
[384372622,1757353846314,-160.0,0.00014773,2]
[384372623,1757353846324,-160.0,0.00014773,2]
[384372624,1757353846333,-160.0,0.00014774,2]
[384372625,1757353846343,-160.0,0.00014774,2]
[384372626,1757353846353,-417.15472785,0.00014774,2]
[384372627,1757353846363,-160.0,0.00014774,2]
[384372628,1757353846374,-203.26219058,0.00014774,2]
[384372629,1757353846384,-846.71598105,0.00014774,2]
[384372630,1757353846393,-233.03190505,0.00014774,2]
[384372631,1757353846402,-217.62647793,0.00014774,2]
[384372632,1757353846412,-530.71506861,0.00014774,2]
[384372633,1757353846422,-480.0,0.00014794,2]
[384372634,1757353846431,-480.0,0.00014794,2]
[384372635,1757353846440,-250.94,0.00014794,2]
[384372636,1757353846449,-480.0,0.00014794,2]
[384372637,1757353846458,-480.0,0.00014794,2]
[384372638,1757353846468,-480.0,0.00014794,2]
[384372639,1757353846477,-480.0,0.00014794,2]
[384372640,1757353846487,-480.0,0.00014794,2]
[384372641,1757353846496,-911.1,0.00014794,2]
[384372642,1757353846506,-1500.0,0.00014795,2]
[384372643,1757353846515,-480.0,0.00015068,2]
[384372644,1757353846524,-480.0,0.00015068,2]
[384372645,1757353846533,-480.0,0.00015068,2]
[384372646,1757353846542,-480.0,0.00015068,2]
[384372647,1757353846552,-387.29,0.00015068,2]
[384372648,1757353846561,-204.44,0.00015068,2]
[384372649,1757353846571,-572.96,0.00015068,2]
[384372650,1757353846580,-911.1,0.00015068,2]
[384372651,1757353846590,-169.430008,0.00015068,2]
[384372652,1757353846599,-2000.0,0.00015116,2]
[384372653,1757353846608,-313.55097585,0.0001522,7]
[384372654,1757353846619,-480.0,0.00015342,2]
[384372655,1757353846630,-480.0,0.00015342,2]
[384372656,1757353846639,-480.0,0.00015342,2]
[384372657,1757353846648,-480.0,0.00015342,2]
[384372658,1757353846658,-911.1,0.00015342,2]
[384372659,1757353846667,-2000.0,0.00015342,2]
[384372660,1757353846676,-720.0,0.00015368,2]
[384372661,1757353846685,-312.39417898,0.00015543,2]
[384372662,1757353846695,-480.0,0.00015616,2]
[384372663,1757353846704,-480.0,0.00015616,2]
[384372664,1757353846713,-480.0,0.00015616,2]
[384372665,1757353846723,-480.0,0.00015616,2]
[384372666,1757353846733,-911.1,0.00015616,2]
[384372667,1757353846742,-2500.0,0.00015664,2]
[384372668,1757353846752,-500.0,0.00015852,2]
[384372669,1757353846761,-505.19,0.0001589,2]
[384372670,1757353846771,-480.0,0.0001589,2]
[384372671,1757353846781,-480.0,0.0001589,2]
[384372672,1757353846790,-480.0,0.0001589,2]
[384372673,1757353846799,-911.1,0.0001589,2]
[384372674,1757353846808,-160.0,0.0001589,2]
[384372675,1757353846817,-2500.0,0.0001589,2]
[384372676,1757353846827,-433.2,0.00016164,2]
[384372677,1757353846836,-480.0,0.00016164,2]
[384372678,1757353846846,-480.0,0.00016164,2]
[384372679,1757353846855,-911.1,0.00016164,2]
[384372680,1757353846865,-3000.0,0.00016212,2]
[384372681,1757353846875,-976.0,0.00016414,2]
[384372682,1757353846885,-2154.0,0.00016414,2]
[384372683,1757353846894,-634.0,0.00016414,2]
[384372684,1757353846904,-4027.0,0.00016414,2]
[384372685,1757353846913,-480.0,0.00016438,2]
[384372686,1757353846923,-480.0,0.00016438,2]
[384372687,1757353846932,-911.1,0.00016438,2]
[384372688,1757353846942,-260.0,0.00016438,2]
[384372689,1757353846952,-3000.0,0.00016438,2]
[384372690,1757353846962,-500.0,0.00016687,2]
[384372691,1757353846972,-480.0,0.00016712,2]
[384372692,1757353846982,-480.0,0.00016712,2]
[384372693,1757353846993,-911.1,0.00016712,2]
[384372694,1757353847002,-3500.0,0.0001676,2]
[384372695,1757353847012,-864.0,0.00016905,2]
[384372696,1757353847021,-332.67,0.00016986,2]
[384372697,1757353847031,-154.99,0.00016986,2]
[384372698,1757353847040,-911.1,0.00016986,2]
[384372699,1757353847049,-360.0,0.00016986,2]
[384372700,1757353847059,-3500.0,0.00016986,2]
[384372701,1757353847068,-344.0,0.0001701,2]
[384372702,1757353847078,-431.0,0.00017155,2]
[384372703,1757353847087,-911.1,0.0001726,2]
[384372704,1757353847097,-4000.0,0.00017308,2]
[384372705,1757353847107,-911.1,0.00017534,2]
[384372706,1757353847116,-460.0,0.00017534,2]
[384372707,1757353847126,-500.0,0.00017565,2]
[384372708,1757353847135,-312.39417898,0.00017717,2]
[384372709,1757353847145,-911.1,0.00017808,2]
[384372710,1757353847154,-4500.0,0.00017856,2]
[384372711,1757353847169,-911.1,0.00018082,2]
[384372712,1757353847179,-560.0,0.00018082,2]
[384372713,1757353847188,-911.1,0.00018356,2]
[384372714,1757353847198,-5000.0,0.00018404,2]
[384372715,1757353847209,-500.0,0.0001849,2]
[384372716,1757353847218,-1000.0,0.00018595,20]
[384372717,1757353847228,-911.1,0.0001863,2]
[384372718,1757353847238,-660.0,0.0001863,2]
[384372719,1757353847248,-911.1,0.00018904,2]
[384372720,1757353847258,-5500.0,0.00018952,2]
[384372721,1757353847268,-911.1,0.00019178,2]
[384372722,1757353847278,-760.0,0.00019178,2]
[384372723,1757353847288,-151.0,0.000193,2]
[384372724,1757353847297,-976.0,0.00019414,2]
[384372725,1757353847307,-2154.0,0.00019414,2]
[384372726,1757353847317,-634.0,0.00019414,2]
[384372727,1757353847326,-500.0,0.00019414,2]
[384372728,1757353847336,-911.1,0.00019452,2]
[384372729,1757353847345,-6000.0,0.000195,2]
[384372730,1757353847354,-169.430008,0.00019635,2]
[384372731,1757353847363,-157.0,0.00019726,2]
[384372732,1757353847374,-157.0,0.00019726,2]
[384372733,1757353847383,-268.7898824,0.00019726,2]
[384372734,1757353847393,-293.0912377,0.00019726,2]
[384372735,1757353847403,-157.0,0.00019726,2]
[384372736,1757353847414,-157.0,0.00019726,2]
[384372737,1757353847424,-157.0,0.00019726,2]
[384372738,1757353847433,-157.0,0.00019726,2]
[384372739,1757353847443,-157.0,0.00019726,2]
[384372740,1757353847452,-157.0,0.00019726,2]
[384372741,1757353847462,-157.0,0.00019726,2]
[384372742,1757353847472,-157.0,0.00019726,2]
[384372743,1757353847481,-157.0,0.00019726,2]
[384372744,1757353847491,-157.0,0.00019726,2]
[384372745,1757353847501,-157.0,0.00019726,2]
[384372746,1757353847510,-157.0,0.00019726,2]
[384372747,1757353847520,-157.0,0.00019726,2]
[384372748,1757353847529,-435.0,0.00019726,2]
[384372749,1757353847539,-308.24724585,0.00019726,2]
[384372750,1757353847549,-157.0,0.00019726,2]
[384372751,1757353847559,-157.0,0.00019726,2]
[384372752,1757353847568,-157.0,0.00019726,2]
[384372753,1757353847578,-302.18639333,0.00019726,2]
[384372754,1757353847588,-157.0,0.00019726,2]
[384372755,1757353847597,-166.89357352,0.00019726,2]
[384372756,1757353847607,-157.0,0.00019726,2]
[384372757,1757353847616,-157.0,0.00019726,2]
[384372758,1757353847625,-157.0,0.00019726,2]
[384372759,1757353847635,-911.1,0.00019726,2]
[384372760,1757353847645,-860.0,0.00019726,2]
[384372761,1757353847655,-312.39417898,0.00019891,2]
[384372762,1757353847664,-14637.74438189,0.000199,2]
[384372763,1757353847779,-2093.62556752,0.000199,2]
[384372764,1757353847858,-411.64118821,0.00013698,2]
[384372765,1757353847869,-3724.4951389,0.000199,2]
[384372766,1757353847879,-157.0,0.0002,2]
[384372767,1757353847889,-309.32256392,0.0002,2]
[384372768,1757353847898,-157.0,0.0002,2]
[384372769,1757353847907,-157.0,0.0002,2]
[384372770,1757353847917,-157.0,0.0002,2]
[384372771,1757353847927,-157.0,0.0002,2]
[384372772,1757353847936,-157.0,0.0002,2]
[384372773,1757353847946,-157.0,0.0002,2]
[384372774,1757353847956,-435.0,0.0002,2]
[384372775,1757353847966,-157.0,0.0002,2]
[384372776,1757353847976,-157.0,0.0002,2]
[384372777,1757353847986,-157.0,0.0002,2]
[384372778,1757353847996,-157.0,0.0002,2]
[384372779,1757353848006,-157.0,0.0002,2]
[384372780,1757353848016,-4000.0,0.0002,4]
[384372781,1757353848026,-911.28584302,0.0002,2]
[384372782,1757353848036,-6500.0,0.00020048,2]
[384372783,1757353848045,-551.09257,0.00020187,2]
[384372784,1757353848055,-186.0,0.00020274,2]
[384372785,1757353848064,-186.0,0.00020274,2]
[384372786,1757353848074,-186.0,0.00020274,2]
[384372787,1757353848083,-186.0,0.00020274,2]
[384372788,1757353848093,-81.72159249,0.00020274,2]
[384372789,1757353848110,-223.11787458,0.00020274,2]
[384372790,1757353848120,-186.0,0.00020274,2]
[384372791,1757353848130,-186.0,0.00020274,2]
[384372792,1757353848140,-435.0,0.00020274,2]
[384372793,1757353848150,-254.58799711,0.00020274,2]
[384372794,1757353848162,-161.63,0.00020274,2]
[384372795,1757353848172,-186.0,0.00020274,2]
[384372796,1757353848183,-186.0,0.00020274,2]
[384372797,1757353848192,-186.0,0.00020274,2]
[384372798,1757353848201,-960.0,0.00020274,2]
[384372799,1757353848211,-500.0,0.00020385,2]
[384372800,1757353848220,-1000.0,0.00020455,20]
[384372801,1757353848230,-244.0,0.00020455,20]
[384372802,1757353848241,-4027.0,0.00020517,2]
[384372803,1757353848251,-435.0,0.00020548,2]
[384372804,1757353848261,-4121.75536897,0.00020596,2]
[384372805,1757353848303,-151.0,0.000207,3]
[384372806,1757353848314,-435.0,0.00020822,2]
[384372807,1757353848324,-1060.0,0.00020822,2]
[384372808,1757353848334,-544.83085768,0.00021051,2]
[384372809,1757353848344,-2177.14410729,0.00021051,2]
[384372810,1757353848354,-10576.6745308,0.00021086,10]
[384372811,1757353848363,-530.71506861,0.0002109,10]
[384372812,1757353848372,-417.15472785,0.0002109,10]
[384372813,1757353848382,-203.26219058,0.0002109,10]
[384372814,1757353848392,-160.0,0.0002109,10]
[384372815,1757353848402,-435.0,0.00021096,2]
[384372816,1757353848412,-20455.8650883,0.00021173,2]
[384372817,1757353848422,-1160.0,0.00021369,2]
[384372818,1757353848432,-435.0,0.0002137,2]
[384372819,1757353848441,-500.0,0.00021404,2]
[384372820,1757353848451,-710.349,0.0002142,2]
[384372821,1757353848461,-435.0,0.00021644,2]
[384372822,1757353848470,-1900.0,0.00021712,2]
[384372823,1757353848479,-1260.0,0.00021917,2]
[384372824,1757353848489,-435.0,0.00021918,2]
[384372825,1757353848499,-153.0,0.00021918,2]
[384372826,1757353848508,-153.0,0.00021918,2]
[384372827,1757353848517,-153.0,0.00021918,2]
[384372828,1757353848526,-153.0,0.00021918,2]
[384372829,1757353848536,-153.0,0.00021918,2]
[384372830,1757353848545,-153.0,0.00021918,2]
[384372831,1757353848555,-153.0,0.00021918,2]
[384372832,1757353848564,-153.0,0.00021918,2]
[384372833,1757353848573,-153.0,0.00021918,2]
[384372834,1757353848582,-153.0,0.00021918,2]
[384372835,1757353848592,-153.0,0.00021918,2]
[384372836,1757353848601,-153.0,0.00021918,2]
[384372837,1757353848610,-153.0,0.00021918,2]
[384372838,1757353848619,-153.0,0.00021918,2]
[384372839,1757353848629,-153.0,0.00021918,2]
[384372840,1757353848639,-153.0,0.00021918,2]
[384372841,1757353848649,-153.0,0.00021918,2]
[384372842,1757353848658,-153.0,0.00021918,2]
[384372843,1757353848668,-153.0,0.00021918,2]
[384372844,1757353848678,-153.0,0.00021918,2]
[384372845,1757353848687,-153.0,0.00021918,2]
[384372846,1757353848697,-153.0,0.00021918,2]
[384372847,1757353848706,-153.0,0.00021918,2]
[384372848,1757353848715,-153.0,0.00021918,2]
[384372849,1757353848725,-153.0,0.00021918,2]
[384372850,1757353848734,-153.0,0.00021918,2]
[384372851,1757353848744,-153.0,0.00021918,2]
[384372852,1757353848762,-153.0,0.00021918,2]
[384372853,1757353848772,-153.0,0.00021918,2]
[384372854,1757353848782,-153.0,0.00021918,2]
[384372855,1757353848792,-153.0,0.00021918,2]
[384372856,1757353848801,-153.0,0.00021918,2]
[384372857,1757353848811,-153.0,0.00021918,2]
[384372858,1757353848820,-153.0,0.00021918,2]
[384372859,1757353848830,-153.0,0.00021918,2]
[384372860,1757353848841,-153.0,0.00021918,2]
[384372861,1757353848851,-153.0,0.00021918,2]
[384372862,1757353848861,-153.0,0.00021918,2]
[384372863,1757353848871,-153.0,0.00021918,2]
[384372864,1757353848881,-153.0,0.00021918,2]
[384372865,1757353848891,-153.0,0.00021918,2]
[384372866,1757353848900,-153.0,0.00021918,2]
[384372867,1757353848910,-153.0,0.00021918,2]
[384372868,1757353848919,-153.0,0.00021918,2]
[384372869,1757353848929,-153.0,0.00021918,2]
[384372870,1757353848938,-153.0,0.00021918,2]
[384372871,1757353848948,-153.0,0.00021918,2]
[384372872,1757353848958,-153.0,0.00021918,2]
[384372873,1757353848968,-153.0,0.00021918,2]
[384372874,1757353848978,-153.0,0.00021918,2]
[384372875,1757353848988,-153.0,0.00021918,2]
[384372876,1757353848997,-153.0,0.00021918,2]
[384372877,1757353849008,-160.0,0.0002199,10]
[384372878,1757353849018,-10576.6745308,0.00022,7]
[384372879,1757353849028,-160.0,0.00022,7]
[384372880,1757353849038,-6850.78,0.00022,7]
[384372881,1757353849049,-7478.75,0.00022,7]
[384372882,1757353849058,-41571.19707731,0.00022,7]
[384372883,1757353849139,-631.96031169,0.00013561,2]
[384372884,1757353849151,-10706.87292269,0.00022,7]
[384372885,1757353849164,-151.0,0.00022,10]
[384372886,1757353849173,-8520.16676562,0.00022,2]
[384372887,1757353849185,-563.21139385,0.00022,2]
[384372888,1757353849197,-2065.30807136,0.00022,2]
[384372889,1757353849253,-500.0,0.00013469,2]
[384372890,1757353849262,-200.90795355,0.00013598,2]
[384372891,1757353849274,-453.0,0.00013598,2]
[384372892,1757353849285,-10091.20684642,0.00013598,2]
[384372893,1757353849295,-480.0,0.00013698,2]
[384372894,1757353849304,-480.0,0.00013698,2]
[384372895,1757353849315,-480.0,0.00013698,2]
[384372896,1757353849324,-50352.87376917,0.00022,2]
[384372897,1757353849334,-4364.73,0.00022,7]
[384372898,1757353849343,-530.71506861,0.00022,7]
[384372899,1757353849353,-417.15472785,0.00022,7]
[384372900,1757353849363,-203.26219058,0.00022,7]
[384372901,1757353849373,-407.48,0.00022,2]
[384372902,1757353849383,-312.39417898,0.00022064,2]
[384372903,1757353849392,-157.993978,0.00022075,3]
[384372904,1757353849403,-435.0,0.00022192,2]
[384372905,1757353849413,-157.993978,0.00022285,2]
[384372906,1757353849422,-975.0,0.00022414,2]
[384372907,1757353849431,-2154.0,0.00022414,2]
[384372908,1757353849441,-634.0,0.00022414,2]
[384372909,1757353849451,-9245.85059503,0.00022447,2]
[384372910,1757353876573,154.834099,0.00025,30]
[384372911,1757353901133,-1480.10317743,0.00013335,2]
[384372912,1757353922838,300.0,0.00013369,2]
[384372913,1757353924580,300.0,0.00013235,2]
[384372915,1757353939846,194.143001,0.00025,30]
[384372916,1757353940293,194.143001,0.00025,30]
[384372917,1757353940571,194.143001,0.00025,30]
[384372918,1757353940886,194.143001,0.00025,30]
[384372919,1757353941239,194.143001,0.00025,30]
[384372920,1757353947340,6439.80364514,0.00013237,2]
[384372921,1757353947362,10000.01,0.00013237,2]
[384372922,1757353947384,10000.01,0.00013237,2]
[384372923,1757353947407,4783.41173775,0.00013237,2]
[384372924,1757353978271,413.32896411,0.00013369,2]
[384372925,1757353979643,500.0,0.00013369,2]
[384372926,1757353979675,500.0,0.00013369,2]
[384372927,1757353979705,500.0,0.00013369,2]
[384372928,1757353979741,500.0,0.00013369,2]
[384372929,1757353979770,500.0,0.00013369,2]
[384372930,1757353979799,500.0,0.00013369,2]
[384372931,1757353979836,500.0,0.00013369,2]
[384372932,1757353979866,500.0,0.00013369,2]
[384372933,1757353979902,500.0,0.00013369,2]
[384372934,1757353979932,303.26929814,0.00013369,2]
[384372935,1757353979954,196.73070186,0.00013369,2]
[384372936,1757353979984,500.0,0.00013369,2]
[384372937,1757353980021,500.0,0.00013369,2]
[384372938,1757353980052,500.0,0.00013369,2]
[384372939,1757353980084,500.0,0.00013369,2]
[384372940,1757353980115,500.0,0.00013369,2]
[384372941,1757353980146,500.0,0.00013369,2]
[384372942,1757353980174,500.0,0.00013369,2]
[384372943,1757353980206,500.0,0.00013369,2]
[384372944,1757353980341,500.0,0.00013369,2]
[384372945,1757353980370,500.0,0.00013369,2]
[384372946,1757353980400,500.0,0.00013369,2]
[384372947,1757353980428,442.3834801,0.00013369,2]
[384372948,1757353980459,500.0,0.00013369,2]
[384372949,1757353980493,500.0,0.00013369,2]
[384372950,1757353980521,500.0,0.00013369,2]
[384372951,1757353980552,500.0,0.00013369,2]
[384372952,1757353980582,607.58892858,0.00013369,2]
[384372953,1757353980612,500.0,0.00013369,2]
[384372954,1757353980653,500.0,0.00013369,2]
[384372955,1757353980680,253.30688946,0.00013369,2]
[384372956,1757353980701,246.69311054,0.00013369,2]